fUSD/lending_fUSD_20240122
["ID","MTS","AMOUNT","RATE_DAILY","PERIOD"]
[312520675,1705942252379,-500.0,0.00054794,120]
[312520676,1705942252388,-1676.05,0.00054794,120]
[312520677,1705942252397,-500.0,0.00054794,120]
[312520678,1705942252406,-500.0,0.00054794,120]
[312520679,1705942252415,-1200.74,0.00054794,120]
[312520680,1705942252424,-551.02818367,0.00054794,120]
[312520681,1705942252434,-500.0,0.00054794,120]
[312520682,1705942252443,-3921.91,0.00054794,120]
[312520683,1705942252452,-1841.71,0.00054794,120]
[312520684,1705942252461,-500.0,0.00054794,120]
[312520685,1705942252472,-500.0,0.00054794,120]
[312520686,1705942252483,-500.0,0.00054794,120]
[312520687,1705942252492,-1638.92,0.00054794,120]
[312520688,1705942252502,-500.0,0.00054794,120]
[312520689,1705942252511,-760.03,0.00054794,120]
[312520690,1705942252521,-983.65,0.00054794,120]
[312520691,1705942252530,-753.79,0.00054794,120]
[312520692,1705942252540,-694.12,0.00054794,120]
[312520693,1705942252549,-1023.91,0.00054794,120]
[312520694,1705942252559,-500.0,0.00054794,120]
[312520695,1705942252567,-1153.82,0.00054794,120]
[312520696,1705942252577,-895.96,0.00054794,120]
[312520697,1705942252586,-500.0,0.00054794,120]
[312520698,1705942252596,-500.0,0.00054794,120]
[312520699,1705942252605,-500.0,0.00054794,120]
[312520700,1705942252614,-500.0,0.00054794,120]
[312520701,1705942252624,-630.13,0.00054794,120]
[312520702,1705942252633,-906.48,0.00054794,120]
[312520703,1705942252643,-500.0,0.00054794,120]
[312520704,1705942252653,-500.0,0.00054794,120]
[312520705,1705942252662,-1028.29,0.00054794,120]
[312520706,1705942252671,-178.72681314,0.00054794,120]
[312520707,1705942252681,-500.0,0.00054794,120]
[312520708,1705942252690,-649.02,0.00054794,120]
[312520709,1705942252699,-500.0,0.00054794,120]
[312520710,1705942252709,-773.13,0.00054794,120]
[312520711,1705942252718,-500.0,0.00054794,120]
[312520712,1705942252727,-500.0,0.00054794,120]
[312520713,1705942252738,-500.0,0.00054794,120]
[312520714,1705942252748,-1504.11,0.00054794,120]
[312520715,1705942252757,-768.01,0.00054794,120]
[312520716,1705942252766,-166.61575528,0.00054794,120]
[312520717,1705942252775,-778.2,0.00054794,120]
[312520718,1705942252785,-500.0,0.00054794,120]
[312520719,1705942252795,-1829.78,0.00054794,120]
[312520720,1705942252804,-500.0,0.00054794,120]
[312520721,1705942252813,-543.66,0.00054794,120]
[312520722,1705942252822,-500.0,0.00054794,120]
[312520723,1705942252831,-950.19,0.00054794,120]
[312520724,1705942252841,-500.0,0.00054794,120]
[312520725,1705942252850,-505.05,0.00054794,120]
[312520726,1705942252860,-1074.68,0.00054794,120]
[312520727,1705942252869,-500.0,0.00054794,120]
[312520728,1705942252878,-1213.81,0.00054794,120]
[312520729,1705942252887,-823.2,0.00054794,120]
[312520730,1705942252896,-500.0,0.00054794,120]
[312520731,1705942252905,-500.0,0.00054794,120]
[312520732,1705942252913,-1115.17,0.00054794,120]
[312520733,1705942252922,-856.62,0.00054794,120]
[312520734,1705942252931,-500.0,0.00054794,120]
[312520735,1705942252940,-500.0,0.00054794,120]
[312520736,1705942252949,-500.0,0.00054794,120]
[312520737,1705942252958,-682.86,0.00054794,120]
[312520738,1705942252967,-594.97,0.00054794,120]
[312520739,1705942252977,-500.0,0.00054794,120]
[312520740,1705942252987,-1646.87,0.00054794,120]
[312520741,1705942252996,-504.21238893,0.00054794,120]
[312520742,1705942253005,-822.11,0.00054794,120]
[312520743,1705942253014,-500.0,0.00054794,120]
[312520744,1705942253024,-828.1,0.00054794,120]
[312520745,1705942253033,-580.05,0.00054794,120]
[312520746,1705942253042,-500.0,0.00054794,120]
[312520747,1705942253051,-630.62,0.00054794,120]
[312520748,1705942253062,-2595.41,0.00054794,120]
[312520749,1705942253071,-500.0,0.00054794,120]
[312520750,1705942253081,-930.18,0.00054794,120]
[312520751,1705942253090,-500.0,0.00054794,120]
[312520752,1705942253100,-500.0,0.00054794,120]
[312520753,1705942253110,-518.38428186,0.00054794,120]
[312520754,1705942253119,-500.0,0.00054794,120]
[312520755,1705942253129,-678.49,0.00054794,120]
[312520756,1705942253138,-500.0,0.00054794,120]
[312520757,1705942253148,-742.05,0.00054794,120]
[312520758,1705942253158,-500.0,0.00054794,120]
[312520759,1705942253168,-1073.28,0.00054794,120]
[312520760,1705942253180,-500.0,0.00054794,120]
[312520761,1705942253190,-829.6,0.00054794,120]
[312520762,1705942253200,-617.27,0.00054794,120]
[312520763,1705942253210,-1590.69,0.00054794,120]
[312520764,1705942253220,-500.0,0.00054794,120]
[312520765,1705942253229,-500.0,0.00054794,120]
[312520766,1705942253238,-815.78,0.00054794,120]
[312520767,1705942253246,-1543.05,0.00054794,120]
[312520768,1705942253256,-500.0,0.00054794,120]
[312520769,1705942253265,-500.0,0.00054794,120]
[312520770,1705942253274,-1475.16,0.00054794,120]
[312520771,1705942253283,-500.0,0.00054794,120]
[312520772,1705942253292,-714.16,0.00054794,120]
[312520773,1705942253301,-1006.24,0.00054794,120]
[312520774,1705942253310,-177.99726739,0.00054794,120]
[312520775,1705942253319,-758.37,0.00054794,120]
[312520776,1705942253328,-500.0,0.00054794,120]
[312520777,1705942253337,-1423.08,0.00054794,120]
[312520778,1705942253347,-500.0,0.00054794,120]
[312520779,1705942253356,-765.85,0.00054794,120]
[312520780,1705942253366,-810.81,0.00054794,120]
[312520781,1705942253376,-500.0,0.00054794,30]
[312520782,1705942253385,-500.0,0.00054794,120]
[312520783,1705942253396,-500.0,0.00054794,120]
[312520784,1705942253406,-569.61,0.00054794,120]
[312520785,1705942253417,-695.94,0.00054794,120]
[312520786,1705942253427,-500.0,0.00054794,120]
[312520787,1705942253437,-500.0,0.00054794,120]
[312520788,1705942253447,-2137.13,0.00054794,120]
[312520789,1705942253456,-500.0,0.00054794,120]
[312520790,1705942253467,-1195.99,0.00054794,120]
[312520791,1705942253481,-735.82,0.00054794,120]
[312520792,1705942253491,-1168.02,0.00054794,120]
[312520793,1705942253501,-675.18,0.00054794,120]
[312520794,1705942253510,-500.0,0.00054794,120]
[312520795,1705942253520,-500.0,0.00054794,120]
[312520796,1705942253529,-500.0,0.00054794,120]
[312520797,1705942253539,-723.21,0.00054794,120]
[312520798,1705942253550,-1962.3,0.00054794,120]
[312520799,1705942253561,-4343.32,0.00054794,120]
[312520800,1705942253570,-500.0,0.00054794,120]
[312520801,1705942253579,-646.29,0.00054794,120]
[312520802,1705942253588,-809.05,0.00054794,120]
[312520803,1705942253597,-1467.22,0.00054794,120]
[312520804,1705942253606,-604.97,0.00054794,120]
[312520805,1705942253616,-759.96,0.00054794,120]
[312520806,1705942253625,-600.2,0.00054794,120]
[312520807,1705942253634,-1223.32,0.00054794,120]
[312520808,1705942253643,-500.0,0.00054794,120]
[312520809,1705942253653,-1336.46,0.00054794,120]
[312520810,1705942253662,-776.65,0.00054794,120]
[312520811,1705942253671,-1097.52,0.00054794,120]
[312520812,1705942253681,-500.0,0.00054794,120]
[312520813,1705942253690,-941.86,0.00054794,120]
[312520814,1705942253699,-3479.79,0.00054794,120]
[312520815,1705942253708,-500.0,0.00054794,120]
[312520816,1705942253717,-6928.17,0.00054794,5]
[312520817,1705942253726,-500.0,0.00054794,120]
[312520818,1705942253735,-1530.05,0.00054794,120]
[312520819,1705942253744,-630.06,0.00054794,120]
[312520820,1705942253755,-500.0,0.00054794,120]
[312520821,1705942253764,-500.0,0.00054794,120]
[312520822,1705942253773,-500.0,0.00054794,120]
[312520823,1705942253782,-631.92,0.00054794,120]
[312520824,1705942253791,-581.13,0.00054794,120]
[312520825,1705942253800,-363.24960393,0.00054794,120]
[312520826,1705942253809,-968.66,0.00054794,120]
[312520827,1705942253818,-501.28255503,0.00054794,120]
[312520828,1705942253827,-663.93,0.00054794,120]
[312520829,1705942253837,-500.0,0.00054794,120]
[312520830,1705942253847,-729.77,0.00054794,120]
[312520831,1705942253857,-548.64,0.00054794,120]
[312520832,1705942253869,-1034.47,0.00054794,120]
[312520833,1705942253878,-1002.03,0.00054794,120]
[312520834,1705942253889,-263.46869367,0.00054794,120]
[312520835,1705942253898,-659.04,0.00054794,120]
[312520836,1705942253910,-500.0,0.00054794,120]
[312520837,1705942253919,-253.03809498,0.00054794,120]
[312520838,1705942253928,-500.0,0.00054794,7]
[312520839,1705942253937,-669.88,0.00054794,120]
[312520840,1705942253946,-508.5,0.00054794,120]
[312520841,1705942253955,-500.0,0.00054794,120]
[312520842,1705942253964,-439.49533184,0.00054794,120]
[312520843,1705942253975,-500.0,0.00054794,120]
[312520844,1705942253985,-500.0,0.00054794,120]
[312520845,1705942253994,-1260.2,0.00054794,120]
[312520846,1705942254003,-500.0,0.00054794,120]
[312520847,1705942254013,-1310.32,0.00054794,120]
[312520848,1705942254022,-666.0,0.00054794,120]
[312520849,1705942254032,-641.51340671,0.00054794,120]
[312520850,1705942254041,-1375.16,0.00054794,120]
[312520851,1705942254050,-500.0,0.00054794,120]
[312520852,1705942254059,-777.93,0.00054794,120]
[312520853,1705942254068,-1000.0,0.00054794,50]
[312520854,1705942254078,-500.0,0.00054794,120]
[312520855,1705942254087,-500.0,0.00054794,120]
[312520856,1705942254097,-500.0,0.00054794,120]
[312520857,1705942254105,-780.67,0.00054794,120]
[312520858,1705942254115,-609.64,0.00054794,120]
[312520859,1705942254125,-952.88,0.00054794,120]
[312520860,1705942254134,-500.0,0.00054794,120]
[312520861,1705942254143,-324.66490422,0.00054794,120]
[312520862,1705942254152,-500.0,0.00054794,120]
[312520863,1705942254162,-503.95911456,0.00054794,120]
[312520864,1705942254172,-500.0,0.00054794,120]
[312520865,1705942254183,-1288.87,0.00054794,120]
[312520866,1705942254192,-614.46,0.00054794,120]
[312520867,1705942254201,-500.0,0.00054794,120]
[312520868,1705942254210,-500.0,0.00054794,120]
[312520869,1705942254219,-589.89,0.00054794,120]
[312520870,1705942254229,-500.0,0.00054794,120]
[312520871,1705942254238,-508.24,0.00054794,120]
[312520872,1705942254247,-1173.95,0.00054794,120]
[312520873,1705942254257,-1099.97,0.00054794,120]
[312520874,1705942254266,-891.26,0.00054794,120]
[312520875,1705942254275,-500.0,0.00054794,120]
[312520876,1705942254285,-1741.05,0.00054794,120]
[312520877,1705942254295,-869.66,0.00054794,120]
[312520878,1705942254304,-550.0,0.00054794,120]
[312520879,1705942254313,-155.90769048,0.00054794,120]
[312520880,1705942254323,-983.11,0.00054794,120]
[312520881,1705942254334,-588.97,0.00054794,120]
[312520882,1705942254344,-5629.53,0.00054794,120]
[312520883,1705942254353,-189.56484438,0.00054794,120]
[312520884,1705942254362,-822.9,0.00054794,120]
[312520885,1705942254371,-500.0,0.00054794,120]
[312520886,1705942254381,-1258.02,0.00054794,120]
[312520887,1705942254390,-531.50590622,0.00054794,120]
[312520888,1705942254399,-508.55,0.00054794,120]
[312520889,1705942254408,-500.0,0.00054794,120]
[312520890,1705942254418,-639.75,0.00054794,120]
[312520891,1705942254427,-822.29,0.00054794,120]
[312520892,1705942254436,-500.0,0.00054794,120]
[312520893,1705942254446,-500.0,0.00054794,120]
[312520894,1705942254455,-1538.69,0.00054794,120]
[312520895,1705942254464,-870.0,0.00054794,120]
[312520896,1705942254475,-1693.8,0.00054794,120]
[312520897,1705942254484,-963.73,0.00054794,120]
[312520898,1705942254493,-789.83,0.00054794,120]
[312520899,1705942254502,-500.0,0.00054794,120]
[312520900,1705942254511,-500.0,0.00054794,120]
[312520901,1705942254521,-1271.78,0.00054794,120]
[312520902,1705942254530,-509.16644425,0.00054794,120]
[312520903,1705942254539,-500.0,0.00054794,120]
[312520904,1705942254549,-628.56,0.00054794,120]
[312520905,1705942254560,-500.0,0.00054794,120]
[312520906,1705942254570,-869.58,0.00054794,120]
[312520907,1705942254579,-870.17,0.00054794,120]
[312520908,1705942254588,-500.0,0.00054794,120]
[312520909,1705942254598,-599.89,0.00054794,120]
[312520910,1705942254607,-766.25,0.00054794,120]
[312520911,1705942254618,-500.0,0.00054794,120]
[312520912,1705942254627,-1159.8,0.00054794,120]
[312520913,1705942254636,-500.0,0.00054794,60]
[312520914,1705942254646,-941.19,0.00054794,120]
[312520915,1705942254656,-500.0,0.00054794,120]
[312520916,1705942254665,-500.0,0.00054794,120]
[312520917,1705942254674,-572.94554707,0.00054794,120]
[312520918,1705942254683,-2189.22,0.00054794,120]
[312520919,1705942254693,-746.01,0.00054794,120]
[312520920,1705942254703,-658.14,0.00054794,120]
[312520921,1705942254712,-511.53181537,0.00054794,120]
[312520922,1705942254722,-944.11,0.00054794,120]
[312520923,1705942254731,-315.33920621,0.00054794,120]
[312520924,1705942254741,-1125.33,0.00054794,120]
[312520925,1705942254751,-500.0,0.00054794,120]
[312520926,1705942254760,-898.57,0.00054794,120]
[312520927,1705942254769,-500.0,0.00054794,120]
[312520928,1705942254779,-1108.3,0.00054794,120]
[312520929,1705942254789,-561.47,0.00054794,120]
[312520930,1705942254800,-500.0,0.00054794,120]
[312520931,1705942254808,-500.0,0.00054794,120]
[312520932,1705942254818,-847.08,0.00054794,120]
[312520933,1705942254827,-500.0,0.00054794,120]
[312520934,1705942254837,-15010.01,0.00054794,120]
[312520935,1705942254845,-853.26,0.00054794,120]
[312520936,1705942254855,-557.25,0.00054794,120]
[312520937,1705942254865,-500.0,0.00054794,120]
[312520938,1705942254875,-500.0,0.00054794,120]
[312520939,1705942254884,-547.35,0.00054794,120]
[312520940,1705942254893,-500.0,0.00054794,120]
[312520941,1705942254902,-4920.11,0.00054794,120]
[312520942,1705942254911,-500.0,0.00054794,120]
[312520943,1705942254919,-500.0,0.00054794,120]
[312520944,1705942254928,-872.89,0.00054794,120]
[312520945,1705942254937,-936.9,0.00054794,120]
[312520946,1705942254946,-500.0,0.00054794,120]
[312520947,1705942254957,-500.0,0.00054794,120]
[312520948,1705942254967,-613.62,0.00054794,120]
[312520949,1705942254977,-568.85,0.00054794,120]
[312520950,1705942254986,-573.26,0.00054794,120]
[312520951,1705942254994,-500.0,0.00054794,120]
[312520952,1705942255003,-500.0,0.00054794,120]
[312520953,1705942255013,-2055.2,0.00054794,120]
[312520954,1705942255022,-1090.04,0.00054794,120]
[312520955,1705942255031,-1584.68,0.00054794,120]
[312520956,1705942255041,-1225.33,0.00054794,120]
[312520957,1705942255051,-500.0,0.00054794,120]
[312520958,1705942255076,-500.0,0.00054794,120]
[312520959,1705942255102,-812.84,0.00054794,120]
[312520960,1705942255112,-5061.88767507,0.00054794,14]
[312520961,1705942255122,-500.0,0.00054794,120]
[312520962,1705942255131,-500.0,0.00054794,120]
[312520963,1705942255140,-9707.12,0.00054794,120]
[312520964,1705942255149,-500.0,0.00054794,120]
[312520965,1705942255158,-500.0,0.00054794,120]
[312520966,1705942255167,-1954.82,0.00054794,120]
[312520967,1705942255348,-990.92,0.00054794,120]
[312520968,1705942255358,-731.34,0.00054794,120]
[312520969,1705942255370,-660.76,0.00054794,120]
[312520970,1705942255379,-500.0,0.00054794,120]
[312520971,1705942255388,-500.0,0.00054794,120]
[312520972,1705942255397,-502.24478512,0.00054794,120]
[312520973,1705942255406,-875.43,0.00054794,120]
[312520974,1705942255414,-903.89,0.00054794,120]
[312520975,1705942255423,-1374.95,0.00054794,120]
[312520976,1705942255433,-500.0,0.00054794,120]
[312520977,1705942255442,-662.41,0.00054794,120]
[312520978,1705942255451,-959.86,0.00054794,120]
[312520979,1705942255460,-500.0,0.00054794,120]
[312520980,1705942255470,-500.0,0.00054794,120]
[312520981,1705942255482,-500.0,0.00054794,120]
[312520982,1705942255492,-500.0,0.00054794,120]
[312520983,1705942255501,-500.0,0.00054794,120]
[312520984,1705942255511,-543.78,0.00054794,120]
[312520985,1705942255521,-500.0,0.00054794,120]
[312520986,1705942255531,-500.0,0.00054794,120]
[312520987,1705942255540,-514.24,0.00054794,10]
[312520988,1705942255550,-500.0,0.00054794,120]
[312520989,1705942255561,-723.5,0.00054794,120]
[312520990,1705942255571,-579.08425771,0.00054794,120]
[312520991,1705942255580,-500.0,0.00054794,14]
[312520992,1705942255589,-680.76,0.00054794,120]
[312520993,1705942255598,-767.63,0.00054794,120]
[312520994,1705942255607,-699.54,0.00054794,120]
[312520995,1705942255620,-1748.34,0.00054794,120]
[312520996,1705942255629,-500.0,0.00054794,120]
[312520997,1705942255639,-780.8,0.00054794,120]
[312520998,1705942255648,-526.37,0.00054794,2]
[312520999,1705942255658,-674.41,0.00054794,120]
[312521000,1705942255667,-500.0,0.00054794,120]
[312521001,1705942255676,-403.63364528,0.00054794,120]
[312521002,1705942255686,-795.91,0.00054794,120]
[312521003,1705942255695,-667.0,0.00054794,120]
[312521004,1705942255704,-500.0,0.00054794,120]
[312521005,1705942255713,-1000.0,0.00054794,2]
[312521006,1705942255723,-669.33,0.00054794,120]
[312521007,1705942255732,-568.69,0.00054794,120]
[312521008,1705942255742,-2117.65,0.00054794,120]
[312521009,1705942255751,-607.89,0.00054794,120]
[312521010,1705942255760,-500.0,0.00054794,120]
[312521011,1705942255770,-968.34,0.00054794,120]
[312521012,1705942255780,-554.18,0.00054794,120]
[312521013,1705942255789,-500.0,0.00054794,120]
[312521014,1705942255798,-663.62,0.00054794,120]
[312521015,1705942255807,-779.2,0.00054794,120]
[312521016,1705942255816,-917.47,0.00054794,120]
[312521017,1705942255825,-931.15,0.00054794,120]
[312521018,1705942255834,-500.0,0.00054794,120]
[312521019,1705942255843,-500.0,0.00054794,120]
[312521020,1705942255852,-500.0,0.00054794,120]
[312521021,1705942255861,-500.0,0.00054794,120]
[312521022,1705942255877,-500.0,0.00054794,120]
[312521023,1705942255887,-151.69080193,0.00054794,120]
[312521024,1705942255897,-500.0,0.00054794,120]
[312521025,1705942255909,-674.69,0.00054794,120]
[312521026,1705942255918,-500.0,0.00054794,120]
[312521027,1705942255929,-7567.95,0.00054794,5]
[312521028,1705942255938,-1123.98,0.00054794,120]
[312521029,1705942255948,-1147.57,0.00054794,120]
[312521030,1705942255958,-984.05,0.00054794,120]
[312521031,1705942255968,-500.0,0.00054794,120]
[312521032,1705942255977,-1203.54,0.00054794,120]
[312521033,1705942255986,-500.0,0.00054794,120]
[312521034,1705942255996,-1141.4,0.00054794,120]
[312521035,1705942256005,-3747.78,0.00054794,120]
[312521036,1705942256014,-500.0,0.00054794,120]
[312521037,1705942256024,-845.71,0.00054794,120]
[312521038,1705942256033,-500.0,0.00054794,120]
[312521039,1705942256043,-500.0,0.00054794,120]
[312521040,1705942256052,-566.43,0.00054794,120]
[312521041,1705942256064,-700.95,0.00054794,120]
[312521042,1705942256075,-500.0,0.00054794,120]
[312521043,1705942256084,-500.0,0.00054794,120]
[312521044,1705942256094,-1493.6,0.00054794,120]
[312521045,1705942256105,-665.32,0.00054794,120]
[312521046,1705942256117,-500.0,0.00054794,120]
[312521047,1705942256127,-2461.03,0.00054794,120]
[312521048,1705942256137,-500.0,0.00054794,2]
[312521049,1705942256148,-902.4,0.00054794,120]
[312521050,1705942256158,-500.0,0.00054794,120]
[312521051,1705942256169,-500.0,0.00054794,120]
[312521052,1705942256179,-5152.1,0.00054794,120]
[312521053,1705942256190,-1243.93,0.00054794,120]
[312521054,1705942256199,-1453.38,0.00054794,120]
[312521055,1705942256210,-1208.07,0.00054794,120]
[312521056,1705942256220,-176.65543087,0.00054794,30]
[312521057,1705942256230,-500.0,0.00054794,6]
[312521058,1705942256240,-500.0,0.00054794,6]
[312521059,1705942256250,-500.0,0.00054794,6]
[312521060,1705942256261,-500.0,0.00054794,6]
[312521061,1705942256270,-503.94129561,0.00054794,6]
[312521062,1705942256281,-849.06691983,0.00054799,2]
[312521063,1705942256290,-3000.0,0.000548,30]
[312521064,1705942256301,-500.0,0.000548,30]
[312521065,1705942256311,-2000.0,0.000548,7]
[312521066,1705942256321,-200.0,0.000548,30]
[312521067,1705942256332,-4014.0,0.000548,120]
[312521068,1705942256342,-1000.0,0.000548,30]
[312521069,1705942256351,-205.0,0.000548,36]
[312521070,1705942256360,-200.0,0.000548,20]
[312521071,1705942256372,-612.551946,0.000548,33]
[312521072,1705942256382,-152.4684818,0.000548,30]
[312521073,1705942256391,-152.46,0.000548,30]
[312521074,1705942256402,-152.4684818,0.000548,30]
[312521075,1705942256411,-152.4684818,0.000548,30]
[312521076,1705942256420,-152.4684818,0.000548,30]
[312521077,1705942256431,-812.62364061,0.000548,120]
[312521078,1705942256442,-152.20472655,0.000548,30]
[312521079,1705942256452,-152.20472655,0.000548,30]
[312521080,1705942256463,-152.20472655,0.000548,30]
[312521081,1705942256477,-152.20472655,0.000548,30]
[312521082,1705942256486,-152.20472655,0.000548,30]
[312521083,1705942256496,-152.20472655,0.000548,30]
[312521084,1705942256506,-152.20472655,0.000548,30]
[312521085,1705942256516,-152.20472655,0.000548,30]
[312521086,1705942256526,-152.20472655,0.000548,30]
[312521087,1705942256536,-152.2,0.000548,30]
[312521088,1705942256548,-304.4094531,0.000548,30]
[312521089,1705942256558,-304.4094531,0.000548,30]
[312521090,1705942256567,-304.4094531,0.000548,30]
[312521091,1705942256577,-304.4094531,0.000548,30]
[312521092,1705942256586,-304.4094531,0.000548,30]
[312521093,1705942256595,-304.4094531,0.000548,30]
[312521094,1705942256605,-304.4094531,0.000548,30]
[312521095,1705942256615,-304.4094531,0.000548,30]
[312521096,1705942256625,-304.4094531,0.000548,30]
[312521097,1705942256634,-282.3,0.000548,30]
[312521098,1705942256644,-161.31722052,0.000548,30]
[312521099,1705942256654,-161.31722052,0.000548,30]
[312521100,1705942256663,-161.31722052,0.000548,30]
[312521101,1705942256674,-152.71625747,0.000548,30]
[312521102,1705942256684,-152.71625747,0.000548,30]
[312521103,1705942256694,-152.71625747,0.000548,30]
[312521104,1705942256703,-152.71625747,0.000548,30]
[312521105,1705942256712,-152.71625747,0.000548,30]
[312521106,1705942256722,-152.71625747,0.000548,30]
[312521107,1705942256732,-152.71,0.000548,30]
[312521108,1705942256742,-213.80276045,0.000548,30]
[312521109,1705942256752,-213.80276045,0.000548,30]
[312521110,1705942256763,-213.80276045,0.000548,30]
[312521111,1705942256774,-213.80276045,0.000548,30]
[312521112,1705942256783,-213.80276045,0.000548,30]
[312521113,1705942256793,-213.80276045,0.000548,30]
[312521114,1705942256803,-213.80276045,0.000548,30]
[312521115,1705942256814,-213.80276045,0.000548,30]
[312521116,1705942256824,-213.80276045,0.000548,30]
[312521117,1705942256834,-1000.0,0.000548,30]
[312521118,1705942256844,-297.636432,0.000548,33]
[312521119,1705942256854,-151.32270144,0.0005481,60]
[312521120,1705942256866,-150.0,0.00054822,120]
[312521121,1705942256875,-150.0,0.00054822,120]
[312521122,1705942256885,-156.43690265,0.00054844,60]
[312521123,1705942256895,-1000.0,0.0005488,60]
[312521124,1705942256907,-2096.93517538,0.0005488,60]
[312521125,1705942256918,-505.56172691,0.0005488,60]
[312521126,1705942256928,-1492.22436981,0.0005488,60]
[312521127,1705942256940,-301.45946864,0.0005488,60]
[312521128,1705942256953,-1614.38188665,0.0005488,60]
[312521129,1705942256964,-389.33470566,0.0005488,60]
[312521130,1705942256975,-1694.07050356,0.0005488,60]
[312521131,1705942256986,-217.68719908,0.0005488,60]
[312521132,1705942256998,-352.48504007,0.0005488,60]
[312521133,1705942257009,-819.32403748,0.0005488,60]
[312521134,1705942257018,-29277.80281322,0.0005488,60]
[312521135,1705942257028,-169.3823859,0.0005488,60]
[312521136,1705942257037,-1344.55278433,0.0005488,60]
[312521137,1705942257047,-274.7049408,0.0005488,60]
[312521138,1705942257057,-1082.76272311,0.000549,30]
[312521139,1705942257067,-356874.10694439,0.000549,5]
[312521140,1705942257077,-300.0,0.000549,34]
[312521141,1705942257087,-462.5073591,0.000549,32]
[312521142,1705942257098,-3000.0,0.000549,73]
[312521143,1705942257108,-150.0,0.000549,32]
[312521144,1705942257120,-200.0,0.000549,2]
[312521145,1705942257130,-33012.1971947,0.000549,2]
[312521146,1705942257141,-200.0,0.000549,20]
[312521147,1705942257152,-2174.3173764,0.000549,2]
[312521148,1705942257162,-1114.1687304,0.000549,2]
[312521149,1705942257173,-150.0,0.000549,25]
[312521150,1705942257183,-150.0,0.000549,34]
[312521151,1705942257193,-171.09077796,0.000549,14]
[312521152,1705942257203,-3000.0,0.0005491,73]
[312521153,1705942257213,-531.53850332,0.0005491,2]
[312521154,1705942257223,-5495.68539,0.0005492,73]
[312521155,1705942257233,-934.40870215,0.00054926,60]
[312521156,1705942257243,-43145.7398048,0.00054962,2]
[312521157,1705942257252,-2841.7536471,0.00054962,2]
[312521158,1705942257261,-1456.1779653,0.00054962,2]
[312521159,1705942257272,-150.5,0.0005497,120]
[312521160,1705942257282,-150.5,0.0005497,120]
[312521161,1705942257292,-150.0,0.00054973,10]
[312521162,1705942257302,-150.0,0.00054973,10]
[312521163,1705942257312,-150.5,0.0005498,120]
[312521164,1705942257322,-150.5,0.0005498,120]
[312521165,1705942257333,-184.05,0.0005498,120]
[312521166,1705942257342,-200.0,0.00054987,90]
[312521167,1705942257353,-200.0,0.00054987,70]
[312521168,1705942257365,-200.0,0.00054987,54]
[312521169,1705942257375,-150.5,0.0005499,120]
[312521170,1705942257385,-150.5,0.0005499,120]
[312521171,1705942257396,-150.5,0.0005499,120]
[312521172,1705942257407,-155.97854603,0.00054998,4]
[312521173,1705942257417,-156.15848578,0.00054998,4]
[312521174,1705942257427,-157.1954508,0.00054998,4]